fUSD/lending_fUSD_20240612
["ID","MTS","AMOUNT","RATE_DAILY","PERIOD"]
[329268707,1718206252438,-1067.35,0.0002,2]
[329268708,1718206252449,-2078.4,0.0002,2]
[329268709,1718206252460,-500.0,0.0002,2]
[329268710,1718206252471,-925.96,0.0002,2]
[329268711,1718206252481,-500.0,0.0002,2]
[329268712,1718206252492,-1294.68,0.0002,2]
[329268713,1718206252502,-500.0,0.0002,2]
[329268714,1718206252513,-500.0,0.0002,2]
[329268715,1718206252523,-500.0,0.0002,2]
[329268716,1718206252534,-1233.56,0.0002,2]
[329268717,1718206252544,-500.0,0.0002,2]
[329268718,1718206252555,-576.45,0.0002,2]
[329268719,1718206252565,-500.0,0.0002,2]
[329268720,1718206252576,-871.01,0.0002,2]
[329268721,1718206252587,-500.0,0.0002,2]
[329268722,1718206252598,-500.0,0.0002,2]
[329268723,1718206252609,-520.56,0.0002,2]
[329268724,1718206252620,-160.46020018,0.0002,2]
[329268725,1718206252631,-192.13560777,0.00020036,2]
[329268726,1718206252642,-176.32029516,0.00020036,2]
[329268727,1718206252653,-226.74152349,0.000201,2]
[329268728,1718206252663,-874.81,0.00020136,2]
[329268729,1718206252674,-512.74,0.00020136,2]
[329268730,1718206252684,-500.0,0.00020136,2]
[329268731,1718206252694,-1247.07,0.00020136,2]
[329268732,1718206252709,-846.21,0.00020136,2]
[329268733,1718206252719,-1498.42,0.00020136,2]
[329268734,1718206252729,-1261.61,0.00020136,2]
[329268735,1718206252741,-506.13,0.00020136,2]
[329268736,1718206252752,-500.0,0.00020136,2]
[329268737,1718206252764,-1464.38,0.00020136,2]
[329268738,1718206252776,-1547.12,0.00020136,2]
[329268739,1718206252787,-500.0,0.00020136,2]
[329268740,1718206252798,-660.25,0.00020136,2]
[329268741,1718206252813,-1087.66,0.00020136,2]
[329268742,1718206252824,-500.0,0.00020136,2]
[329268743,1718206252835,-3867.83,0.00020136,2]
[329268744,1718206252847,-2243.03,0.00020136,2]
[329268745,1718206252858,-500.0,0.00020136,2]
[329268746,1718206252869,-1045.39,0.00020136,2]
[329268747,1718206252880,-1160.12,0.00020136,2]
[329268748,1718206252893,-500.0,0.00020136,2]
[329268749,1718206252903,-1477.65,0.00020136,2]
[329268750,1718206252914,-578.2,0.00020136,2]
[329268751,1718206252941,-500.0,0.00020136,2]
[329268752,1718206252952,-865.32,0.00020136,2]
[329268753,1718206252962,-659.79,0.00020136,2]
[329268754,1718206252977,-561.2,0.00020136,2]
[329268755,1718206252988,-674.05,0.00020136,2]
[329268756,1718206253000,-2467.36,0.00020136,2]
[329268757,1718206253012,-1252.22,0.00020136,2]
[329268758,1718206253023,-1516.46,0.00020136,2]
[329268759,1718206253034,-903.64,0.00020136,2]
[329268760,1718206253044,-1342.81,0.00020136,2]
[329268761,1718206253057,-1142.39,0.00020136,2]
[329268762,1718206253067,-500.0,0.00020136,2]
[329268763,1718206253078,-1167.35,0.00020136,2]
[329268764,1718206253089,-500.0,0.00020136,2]
[329268765,1718206253099,-925.38,0.00020136,2]
[329268766,1718206253110,-663.03,0.00020136,2]
[329268767,1718206253122,-586.03,0.00020136,2]
[329268768,1718206253134,-1063.95,0.00020136,2]
[329268769,1718206253146,-500.0,0.00020136,2]
[329268770,1718206253161,-533.15,0.00020136,2]
[329268771,1718206253176,-1554.2,0.00020136,2]
[329268772,1718206253204,-1263.93,0.00020136,2]
[329268773,1718206253217,-3231.73,0.00020136,2]
[329268774,1718206253233,-1093.45,0.00020136,2]
[329268775,1718206253258,-1208.09,0.00020136,2]
[329268776,1718206253270,-1621.3,0.00020136,2]
[329268777,1718206253284,-1801.62,0.00020136,2]
[329268778,1718206253299,-500.0,0.00020136,2]
[329268779,1718206253315,-619.05,0.00020136,2]
[329268780,1718206253332,-1653.38,0.00020136,2]
[329268781,1718206253345,-986.03,0.00020136,2]
[329268782,1718206253357,-586.59,0.00020136,2]
[329268783,1718206253373,-500.0,0.00020136,2]
[329268784,1718206253385,-1589.91,0.00020136,2]
[329268785,1718206253399,-500.0,0.00020136,2]
[329268786,1718206253411,-1067.35,0.00020136,2]
[329268787,1718206253425,-2078.4,0.00020136,2]
[329268788,1718206253445,-500.0,0.00020136,2]
[329268789,1718206253459,-925.96,0.00020136,2]
[329268790,1718206253471,-500.0,0.00020136,2]
[329268791,1718206253484,-1294.68,0.00020136,2]
[329268792,1718206253499,-500.0,0.00020136,2]
[329268793,1718206253511,-500.0,0.00020136,2]
[329268794,1718206253524,-500.0,0.00020136,2]
[329268795,1718206253539,-1233.56,0.00020136,2]
[329268796,1718206253577,-500.0,0.00020136,2]
[329268797,1718206253596,-500.0,0.00020136,2]
[329268798,1718206253620,-576.45,0.00020136,2]
[329268799,1718206253638,-871.01,0.00020136,2]
[329268800,1718206253670,-500.0,0.00020136,2]
[329268801,1718206253682,-500.0,0.00020136,2]
[329268802,1718206253694,-520.56,0.00020136,2]
[329268803,1718206253722,-276.37056141,0.00020149,2]
[329268804,1718206253750,-175.20791801,0.00020173,2]
[329268805,1718206253795,-251.87828571,0.00020204,2]
[329268806,1718206253812,-874.81,0.00020273,2]
[329268807,1718206253824,-512.74,0.00020273,2]
[329268808,1718206253845,-500.0,0.00020273,2]
[329268809,1718206253868,-1247.07,0.00020273,2]
[329268810,1718206253879,-846.21,0.00020273,2]
[329268811,1718206253890,-1498.42,0.00020273,2]
[329268812,1718206253905,-1261.61,0.00020273,2]
[329268813,1718206253915,-506.13,0.00020273,2]
[329268814,1718206253948,-500.0,0.00020273,2]
[329268815,1718206253967,-1464.38,0.00020273,2]
[329268816,1718206253979,-1547.12,0.00020273,2]
[329268817,1718206253990,-500.0,0.00020273,2]
[329268818,1718206254001,-660.25,0.00020273,2]
[329268819,1718206254012,-1087.66,0.00020273,2]
[329268820,1718206254025,-500.0,0.00020273,2]
[329268821,1718206254044,-3867.83,0.00020273,2]
[329268822,1718206254058,-2243.03,0.00020273,2]
[329268823,1718206254072,-500.0,0.00020273,2]
[329268824,1718206254082,-1045.39,0.00020273,2]
[329268825,1718206254093,-1160.12,0.00020273,2]
[329268826,1718206254104,-500.0,0.00020273,2]
[329268827,1718206254115,-1477.65,0.00020273,2]
[329268828,1718206254125,-578.2,0.00020273,2]
[329268829,1718206254139,-500.0,0.00020273,2]
[329268830,1718206254152,-865.32,0.00020273,2]
[329268831,1718206254165,-659.79,0.00020273,2]
[329268832,1718206254176,-561.2,0.00020273,2]
[329268833,1718206254193,-674.05,0.00020273,2]
[329268834,1718206254211,-2467.36,0.00020273,2]
[329268835,1718206254225,-1252.22,0.00020273,2]
[329268836,1718206254242,-1516.46,0.00020273,2]
[329268837,1718206254263,-903.64,0.00020273,2]
[329268838,1718206254274,-1342.81,0.00020273,2]
[329268839,1718206254288,-1142.39,0.00020273,2]
[329268840,1718206254300,-500.0,0.00020273,2]
[329268841,1718206254315,-1167.35,0.00020273,2]
[329268842,1718206254328,-485.69,0.00020273,2]
[329268843,1718206254340,-925.38,0.00020273,2]
[329268844,1718206254352,-663.03,0.00020273,2]
[329268845,1718206254364,-586.03,0.00020273,2]
[329268846,1718206254376,-1063.95,0.00020273,2]
[329268847,1718206254387,-404.89,0.00020273,2]
[329268848,1718206254399,-533.15,0.00020273,2]
[329268849,1718206254410,-1554.2,0.00020273,2]
[329268850,1718206254426,-1263.93,0.00020273,2]
[329268851,1718206254439,-3231.73,0.00020273,2]
[329268852,1718206254459,-1208.09,0.00020273,2]
[329268853,1718206254480,-1621.3,0.00020273,2]
[329268854,1718206254491,-1801.62,0.00020273,2]
[329268855,1718206254508,-500.0,0.00020273,2]
[329268856,1718206254535,-619.05,0.00020273,2]
[329268857,1718206254555,-1653.38,0.00020273,2]
[329268858,1718206254588,-986.03,0.00020273,2]
[329268859,1718206254610,-586.59,0.00020273,2]
[329268860,1718206254622,-500.0,0.00020273,2]
[329268861,1718206254638,-1589.91,0.00020273,2]
[329268862,1718206254648,-500.0,0.00020273,2]
[329268863,1718206254659,-1067.35,0.00020273,2]
[329268864,1718206254671,-2078.4,0.00020273,2]
[329268865,1718206254686,-500.0,0.00020273,2]
[329268866,1718206254700,-925.96,0.00020273,2]
[329268867,1718206254716,-500.0,0.00020273,2]
[329268868,1718206254734,-1294.68,0.00020273,2]
[329268869,1718206254756,-500.0,0.00020273,2]
[329268870,1718206254769,-500.0,0.00020273,2]
[329268871,1718206254780,-500.0,0.00020273,2]
[329268872,1718206254792,-1233.56,0.00020273,2]
[329268873,1718206254805,-500.0,0.00020273,2]
[329268874,1718206254816,-500.0,0.00020273,2]
[329268875,1718206254831,-576.45,0.00020273,2]
[329268876,1718206254844,-871.01,0.00020273,2]
[329268877,1718206254861,-500.0,0.00020273,2]
[329268878,1718206254880,-500.0,0.00020273,2]
[329268879,1718206254899,-520.56,0.00020273,2]
[329268880,1718206254950,-159.607,0.00020374,2]
[329268881,1718206254962,-244.26,0.00020409,2]
[329268882,1718206254975,-874.81,0.0002041,2]
[329268883,1718206254996,-512.74,0.0002041,2]
[329268884,1718206255006,-500.0,0.0002041,2]
[329268885,1718206255017,-1247.07,0.0002041,2]
[329268886,1718206255028,-846.21,0.0002041,2]
[329268887,1718206255038,-1498.42,0.0002041,2]
[329268888,1718206255056,-1261.61,0.0002041,2]
[329268889,1718206255071,-506.13,0.0002041,2]
[329268890,1718206255089,-1464.38,0.0002041,2]
[329268891,1718206255102,-1547.12,0.0002041,2]
[329268892,1718206255270,-500.0,0.0002041,2]
[329268893,1718206255283,-500.0,0.0002041,2]
[329268894,1718206255317,-660.25,0.0002041,2]
[329268895,1718206255341,-1087.66,0.0002041,2]
[329268896,1718206255357,-500.0,0.0002041,2]
[329268897,1718206255379,-3867.83,0.0002041,2]
[329268898,1718206255405,-2243.03,0.0002041,2]
[329268899,1718206255419,-500.0,0.0002041,2]
[329268900,1718206255439,-1045.39,0.0002041,2]
[329268901,1718206255458,-1160.12,0.0002041,2]
[329268902,1718206255490,-500.0,0.0002041,2]
[329268903,1718206255504,-1477.65,0.0002041,2]
[329268904,1718206255520,-578.2,0.0002041,2]
[329268905,1718206255531,-500.0,0.0002041,2]
[329268906,1718206255545,-865.32,0.0002041,2]
[329268907,1718206255569,-659.79,0.0002041,2]
[329268908,1718206255580,-561.2,0.0002041,2]
[329268909,1718206255593,-674.05,0.0002041,2]
[329268910,1718206255618,-2467.36,0.0002041,2]
[329268911,1718206255642,-1252.22,0.0002041,2]
[329268912,1718206255656,-1516.46,0.0002041,2]
[329268913,1718206255675,-903.64,0.0002041,2]
[329268914,1718206255697,-1342.81,0.0002041,2]
[329268915,1718206255711,-1142.39,0.0002041,2]
[329268916,1718206255725,-500.0,0.0002041,2]
[329268917,1718206255740,-1167.35,0.0002041,2]
[329268918,1718206255768,-925.38,0.0002041,2]
[329268919,1718206255779,-663.03,0.0002041,2]
[329268920,1718206255806,-586.03,0.0002041,2]
[329268921,1718206255845,-1063.95,0.0002041,2]
[329268922,1718206255874,-533.15,0.0002041,2]
[329268923,1718206255888,-1554.2,0.0002041,2]
[329268924,1718206255902,-1263.93,0.0002041,2]
[329268925,1718206255953,-3231.73,0.0002041,2]
[329268926,1718206255992,-1208.09,0.0002041,2]
[329268927,1718206256004,-1621.3,0.0002041,2]
[329268928,1718206256017,-1801.62,0.0002041,2]
[329268929,1718206256038,-500.0,0.0002041,2]
[329268930,1718206256064,-619.05,0.0002041,2]
[329268931,1718206256097,-1653.38,0.0002041,2]
[329268932,1718206256109,-986.03,0.0002041,2]
[329268933,1718206256123,-586.59,0.0002041,2]
[329268934,1718206256135,-500.0,0.0002041,2]
[329268935,1718206256150,-1589.91,0.0002041,2]
[329268936,1718206256161,-500.0,0.0002041,2]
[329268937,1718206256173,-1067.35,0.0002041,2]
[329268938,1718206256186,-2078.4,0.0002041,2]
[329268939,1718206256198,-500.0,0.0002041,2]
[329268940,1718206256209,-925.96,0.0002041,2]
[329268941,1718206256220,-500.0,0.0002041,2]
[329268942,1718206256235,-1294.68,0.0002041,2]
[329268943,1718206256249,-500.0,0.0002041,2]
[329268944,1718206256261,-500.0,0.0002041,2]
[329268945,1718206256272,-500.0,0.0002041,2]
[329268946,1718206256285,-1233.56,0.0002041,2]
[329268947,1718206256302,-500.0,0.0002041,2]
[329268948,1718206256317,-404.42,0.0002041,2]
[329268949,1718206256329,-576.45,0.0002041,2]
[329268950,1718206256341,-575.11,0.0002041,2]
[329268951,1718206256356,-871.01,0.0002041,2]
[329268952,1718206256370,-360.52,0.0002041,2]
[329268953,1718206256381,-520.56,0.0002041,2]
[329268954,1718206256391,-8260.91817304,0.00020447,2]
[329268955,1718206256403,-302.17365557,0.00020546,2]
[329268956,1718206256415,-874.81,0.00020547,2]
[329268957,1718206256425,-512.74,0.00020547,2]
[329268958,1718206256435,-500.0,0.00020547,2]
[329268959,1718206256447,-1247.07,0.00020547,2]
[329268960,1718206256458,-846.21,0.00020547,2]
[329268961,1718206256469,-1498.42,0.00020547,2]
[329268962,1718206256480,-1261.61,0.00020547,2]
[329268963,1718206256490,-506.13,0.00020547,2]
[329268964,1718206256502,-1464.38,0.00020547,2]
[329268965,1718206256512,-1547.12,0.00020547,2]
[329268966,1718206256523,-500.0,0.00020547,2]
[329268967,1718206256533,-500.0,0.00020547,2]
[329268968,1718206256544,-660.25,0.00020547,2]
[329268969,1718206256555,-1087.66,0.00020547,2]
[329268970,1718206256573,-500.0,0.00020547,2]
[329268971,1718206256587,-3867.83,0.00020547,2]
[329268972,1718206256598,-2243.03,0.00020547,2]
[329268973,1718206256612,-500.0,0.00020547,2]
[329268974,1718206256631,-1045.39,0.00020547,2]
[329268975,1718206256652,-1160.12,0.00020547,2]
[329268976,1718206256667,-500.0,0.00020547,2]
[329268977,1718206256682,-1477.65,0.00020547,2]
[329268978,1718206256693,-578.2,0.00020547,2]
[329268979,1718206256704,-500.0,0.00020547,2]
[329268980,1718206256719,-659.79,0.00020547,2]
[329268981,1718206256730,-865.32,0.00020547,2]
[329268982,1718206256740,-561.2,0.00020547,2]
[329268983,1718206256754,-674.05,0.00020547,2]
[329268984,1718206256765,-2467.36,0.00020547,2]
[329268985,1718206256776,-1252.22,0.00020547,2]
[329268986,1718206256788,-1516.46,0.00020547,2]
[329268987,1718206256799,-903.64,0.00020547,2]
[329268988,1718206256812,-1342.81,0.00020547,2]
[329268989,1718206256822,-1142.39,0.00020547,2]
[329268990,1718206256834,-500.0,0.00020547,2]
[329268991,1718206256858,-1167.35,0.00020547,2]
[329268992,1718206256870,-925.38,0.00020547,2]
[329268993,1718206256881,-663.03,0.00020547,2]
[329268994,1718206256896,-586.03,0.00020547,2]
[329268995,1718206256907,-258.39556456,0.00020547,2]
[329268996,1718206257095,-805.55443544,0.00020547,2]
[329268997,1718206257108,-533.15,0.00020547,2]
[329268998,1718206257120,-1554.2,0.00020547,2]
[329268999,1718206257144,-1263.93,0.00020547,2]
[329269000,1718206257186,-3231.73,0.00020547,2]
[329269001,1718206257209,-1208.09,0.00020547,2]
[329269002,1718206257220,-1621.3,0.00020547,2]
[329269003,1718206257237,-1801.62,0.00020547,2]
[329269004,1718206257253,-500.0,0.00020547,2]
[329269005,1718206257266,-619.05,0.00020547,2]
[329269006,1718206257278,-1653.38,0.00020547,2]
[329269007,1718206257291,-986.03,0.00020547,2]
[329269008,1718206257308,-586.59,0.00020547,2]
[329269009,1718206257322,-500.0,0.00020547,2]
[329269010,1718206257352,-1589.91,0.00020547,2]
[329269011,1718206257370,-500.0,0.00020547,2]
[329269012,1718206257405,-1067.35,0.00020547,2]
[329269013,1718206257417,-2078.4,0.00020547,2]
[329269014,1718206257428,-500.0,0.00020547,2]
[329269015,1718206257445,-925.96,0.00020547,2]
[329269016,1718206257456,-500.0,0.00020547,2]
[329269017,1718206257468,-1294.68,0.00020547,2]
[329269018,1718206257480,-457.8831,0.00020547,2]
[329269019,1718206257494,-500.0,0.00020547,2]
[329269020,1718206257514,-500.0,0.00020547,2]
[329269021,1718206257546,-1233.56,0.00020547,2]
[329269022,1718206257566,-500.0,0.00020547,2]
[329269023,1718206257595,-576.45,0.00020547,2]
[329269024,1718206257618,-871.01,0.00020547,2]
[329269025,1718206257657,-520.56,0.00020547,2]
[329269026,1718206257684,-723.1,0.000206,2]
[329269027,1718206257706,-874.81,0.00020684,2]
[329269028,1718206257729,-512.74,0.00020684,2]
[329269029,1718206257749,-500.0,0.00020684,2]
[329269030,1718206257760,-1247.07,0.00020684,2]
[329269031,1718206257780,-846.21,0.00020684,2]
[329269032,1718206257797,-1498.42,0.00020684,2]
[329269033,1718206257811,-1261.61,0.00020684,2]
[329269034,1718206257829,-506.13,0.00020684,2]
[329269035,1718206257840,-1464.38,0.00020684,2]
[329269036,1718206257853,-1547.12,0.00020684,2]
[329269037,1718206257869,-500.0,0.00020684,2]
[329269038,1718206257885,-500.0,0.00020684,2]
[329269039,1718206257899,-660.25,0.00020684,2]
[329269040,1718206257914,-1087.66,0.00020684,2]
[329269041,1718206257948,-500.0,0.00020684,2]
[329269042,1718206257968,-3867.83,0.00020684,2]
[329269043,1718206257978,-2243.03,0.00020684,2]
[329269044,1718206257989,-500.0,0.00020684,2]
[329269045,1718206258000,-1045.39,0.00020684,2]
[329269046,1718206258017,-1160.12,0.00020684,2]
[329269047,1718206258034,-500.0,0.00020684,2]
[329269048,1718206258048,-1477.65,0.00020684,2]
[329269049,1718206258088,-578.2,0.00020684,2]
[329269050,1718206258112,-500.0,0.00020684,2]
[329269051,1718206258130,-659.79,0.00020684,2]
[329269052,1718206258180,-865.32,0.00020684,2]
[329269053,1718206258221,-561.2,0.00020684,2]
[329269054,1718206258250,-674.05,0.00020684,2]
[329269055,1718206258281,-2467.36,0.00020684,2]
[329269056,1718206258310,-1252.22,0.00020684,2]
[329269057,1718206258331,-1516.46,0.00020684,2]
[329269058,1718206258349,-903.64,0.00020684,2]
[329269059,1718206258373,-1342.81,0.00020684,2]
[329269060,1718206258397,-1142.39,0.00020684,2]
[329269061,1718206258415,-500.0,0.00020684,2]
[329269062,1718206258431,-1167.35,0.00020684,2]
[329269063,1718206258441,-925.38,0.00020684,2]
[329269064,1718206258455,-663.03,0.00020684,2]
[329269065,1718206258468,-586.03,0.00020684,2]
[329269066,1718206258493,-1063.95,0.00020684,2]
[329269067,1718206258505,-533.15,0.00020684,2]
[329269068,1718206258532,-1554.2,0.00020684,2]
[329269069,1718206258544,-1263.93,0.00020684,2]
[329269070,1718206258576,-3231.73,0.00020684,2]
[329269071,1718206258587,-1208.09,0.00020684,2]
[329269072,1718206258598,-1621.3,0.00020684,2]
[329269073,1718206258611,-1801.62,0.00020684,2]
[329269074,1718206258633,-500.0,0.00020684,2]
[329269075,1718206258645,-619.05,0.00020684,2]
[329269076,1718206258676,-1653.38,0.00020684,2]
[329269077,1718206258700,-986.03,0.00020684,2]
[329269078,1718206258732,-586.59,0.00020684,2]
[329269079,1718206258743,-500.0,0.00020684,2]
[329269080,1718206258767,-1589.91,0.00020684,2]
[329269081,1718206258781,-1067.35,0.00020684,2]
[329269082,1718206258792,-500.0,0.00020684,2]
[329269083,1718206258804,-2078.4,0.00020684,2]
[329269084,1718206258828,-500.0,0.00020684,2]
[329269085,1718206258840,-925.96,0.00020684,2]
[329269086,1718206258852,-500.0,0.00020684,2]
[329269087,1718206258863,-1294.68,0.00020684,2]
[329269088,1718206258874,-500.0,0.00020684,2]
[329269089,1718206258885,-500.0,0.00020684,2]
[329269090,1718206258897,-386.16,0.00020684,2]
[329269091,1718206258908,-1233.56,0.00020684,2]
[329269092,1718206258920,-576.45,0.00020684,2]
[329269093,1718206258945,-871.01,0.00020684,2]
[329269094,1718206258955,-520.56,0.00020684,2]
[329269095,1718206258965,-19700.729651,0.000207,2]
[329269096,1718206258976,-800.0,0.00020795,2]
[329269097,1718206258987,-213.98814988,0.00020819,2]
[329269098,1718206258997,-926.25807779,0.0002082,2]
[329269099,1718206259010,-874.81,0.00020821,2]
[329269100,1718206259027,-512.74,0.00020821,2]
[329269101,1718206259040,-500.0,0.00020821,2]
[329269102,1718206259051,-1247.07,0.00020821,2]
[329269103,1718206259064,-846.21,0.00020821,2]
[329269104,1718206259080,-1498.42,0.00020821,2]
[329269105,1718206259091,-1261.61,0.00020821,2]
[329269106,1718206259118,-506.13,0.00020821,2]
[329269107,1718206259132,-1464.38,0.00020821,2]
[329269108,1718206259146,-1547.12,0.00020821,2]
[329269109,1718206259161,-500.0,0.00020821,2]
[329269110,1718206259176,-255.52,0.00020821,2]
[329269111,1718206259200,-660.25,0.00020821,2]
[329269112,1718206259223,-1087.66,0.00020821,2]
[329269113,1718206259241,-500.0,0.00020821,2]
[329269114,1718206259254,-3867.83,0.00020821,2]
[329269115,1718206259265,-2243.03,0.00020821,2]
[329269116,1718206259278,-500.0,0.00020821,2]
[329269117,1718206259289,-1045.39,0.00020821,2]
[329269118,1718206259306,-1160.12,0.00020821,2]
[329269119,1718206259325,-500.0,0.00020821,2]
[329269120,1718206259338,-1477.65,0.00020821,2]
[329269121,1718206259369,-578.2,0.00020821,2]
[329269122,1718206259386,-500.0,0.00020821,2]
[329269123,1718206259401,-659.79,0.00020821,2]
[329269124,1718206259414,-865.32,0.00020821,2]
[329269125,1718206259426,-561.2,0.00020821,2]
[329269126,1718206259440,-674.05,0.00020821,2]
[329269127,1718206259464,-2467.36,0.00020821,2]
[329269128,1718206259477,-1252.22,0.00020821,2]
[329269129,1718206259499,-1516.46,0.00020821,2]
[329269130,1718206259519,-903.64,0.00020821,2]
[329269131,1718206259530,-1342.81,0.00020821,2]
[329269132,1718206259542,-1142.39,0.00020821,2]
[329269133,1718206259554,-500.0,0.00020821,2]
[329269134,1718206259568,-1167.35,0.00020821,2]
[329269135,1718206259582,-925.38,0.00020821,2]
[329269136,1718206259597,-663.03,0.00020821,2]
[329269137,1718206259609,-586.03,0.00020821,2]
[329269138,1718206259620,-1063.95,0.00020821,2]
[329269139,1718206259638,-533.15,0.00020821,2]
[329269140,1718206259663,-1554.2,0.00020821,2]
[329269141,1718206259681,-1263.93,0.00020821,2]
[329269142,1718206259692,-3231.73,0.00020821,2]
[329269143,1718206259705,-1208.09,0.00020821,2]
[329269144,1718206259738,-1621.3,0.00020821,2]
[329269145,1718206259760,-1801.62,0.00020821,2]
[329269146,1718206259779,-500.0,0.00020821,2]
[329269147,1718206259792,-619.05,0.00020821,2]
[329269148,1718206259806,-1653.38,0.00020821,2]
[329269149,1718206259824,-986.03,0.00020821,2]
[329269150,1718206259836,-586.59,0.00020821,2]
[329269151,1718206259850,-500.0,0.00020821,2]
[329269152,1718206259869,-1589.91,0.00020821,2]
[329269153,1718206259883,-500.0,0.00020821,2]
[329269154,1718206259899,-1067.35,0.00020821,2]
[329269155,1718206259913,-2078.4,0.00020821,2]
[329269156,1718206259942,-500.0,0.00020821,2]
[329269157,1718206259958,-925.96,0.00020821,2]
[329269158,1718206259976,-500.0,0.00020821,2]
[329269159,1718206259988,-1294.68,0.00020821,2]
[329269160,1718206260003,-500.0,0.00020821,2]
[329269161,1718206260054,-500.0,0.00020821,2]
[329269162,1718206260071,-416.19392709,0.00020821,2]
[329269163,1718206260221,-500.0,0.00019178,2]
[329269164,1718206260234,-30.44,0.00019315,2]
[329269165,1718206260254,-424.34477685,0.00019315,2]
[329269166,1718206260269,-708.33553772,0.0002,2]
[329269167,1718206260281,-817.36607291,0.00020821,2]
[329269168,1718206260297,-576.45,0.00020821,2]
[329269169,1718206260317,-60.52569252,0.00020821,2]
[329269170,1718206261143,-611.89095579,0.00019178,2]
[329269171,1718206261156,-500.0,0.00019178,2]
[329269172,1718206261168,-177.37658849,0.00019716,2]
[329269173,1718206261180,-810.48430748,0.00020821,2]
[329269174,1718206261191,-520.56,0.00020821,2]
[329269175,1718206261202,-1320.997218,0.00020928,2]
[329269176,1718206261213,-208.064904,0.00020928,2]
[329269177,1718206261224,-2569.10104,0.00020928,2]
[329269178,1718206261235,-170.384923,0.00020928,2]
[329269179,1718206261248,-190.461819,0.00020928,2]
[329269180,1718206261259,-3265.694796,0.00020928,2]
[329269181,1718206261270,-874.81,0.00020958,2]
[329269182,1718206261281,-136.67344824,0.00020958,2]
[329269183,1718206261294,-376.06655176,0.00020958,2]
[329269184,1718206261305,-500.0,0.00020958,2]
[329269185,1718206261317,-1247.07,0.00020958,2]
[329269186,1718206261328,-846.21,0.00020958,2]
[329269187,1718206261339,-1498.42,0.00020958,2]
[329269188,1718206261349,-1261.61,0.00020958,2]
[329269189,1718206261360,-1464.38,0.00020958,2]
[329269190,1718206261371,-1547.12,0.00020958,2]
[329269191,1718206261383,-660.25,0.00020958,2]
[329269192,1718206261394,-1087.66,0.00020958,2]
[329269193,1718206261405,-500.0,0.00020958,2]
[329269194,1718206261416,-3867.83,0.00020958,2]
[329269195,1718206261427,-500.0,0.00020958,2]
[329269196,1718206261446,-1045.39,0.00020958,2]
[329269197,1718206261456,-1160.12,0.00020958,2]
[329269198,1718206261467,-500.0,0.00020958,2]
[329269199,1718206261477,-578.2,0.00020958,2]
[329269200,1718206261487,-1477.65,0.00020958,2]
[329269201,1718206261498,-500.0,0.00020958,2]
[329269202,1718206261508,-865.32,0.00020958,2]
[329269203,1718206261519,-659.79,0.00020958,2]
[329269204,1718206261529,-561.2,0.00020958,2]
[329269205,1718206261539,-674.05,0.00020958,2]
[329269206,1718206261550,-2467.36,0.00020958,2]